[Event "*** Titled Tuesday Blitz"]
[Site "Chess.com"]
[Date "2021.03.09"]
[Round "4"]
[White "HouseOfDurin"]
[Black "Pogosian_Manvel"]
[Result "0-1"]
[WhiteElo "2144"]
[BlackElo "2409"]
[TimeControl "180+1"]
[EndTime "10:42:17 PST"]
[Termination "Pogosian_Manvel won by resignation"]

1. d4 {[%clk 0:03:00.9]} 1... Nf6 {[%clk 0:02:35.5]} 2. Bg5 {[%clk 0:03:00.8]}
2... Ne4 {[%clk 0:02:33.7]} 3. h4 {[%clk 0:03:00.7]} 3... d5 {[%clk 0:02:31.1]}
4. Nd2 {[%clk 0:03:00]} 4... Nxd2 {[%clk 0:02:30.1]} 5. Qxd2 {[%clk 0:03:00.9]}
5... h6 {[%clk 0:02:29.8]} 6. Bf4 {[%clk 0:03:00.5]} 6... Bf5 {[%clk 0:02:28.6]}
7. e3 {[%clk 0:03:00.4]} 7... e6 {[%clk 0:02:28.2]} 8. Bd3 {[%clk 0:03:00.8]}
8... Bxd3 {[%clk 0:02:27.8]} 9. Qxd3 {[%clk 0:03:01.7]} 9... c5 {[%clk 0:02:27]}
10. dxc5 {[%clk 0:02:51.8]} 10... Nc6 {[%clk 0:02:19.8]} 11. Qb5 {[%clk
0:02:39.3]} 11... Qd7 {[%clk 0:02:01.9]} 12. b4 {[%clk 0:02:26.3]} 12... a6
{[%clk 0:02:00.8]} 13. Qa4 {[%clk 0:02:13.9]} 13... Be7 {[%clk 0:01:56.2]} 14.
c3 {[%clk 0:02:09.5]} 14... Bf6 {[%clk 0:01:54.1]} 15. Ne2 {[%clk 0:02:08.9]}
15... O-O {[%clk 0:01:52.5]} 16. Bd6 {[%clk 0:02:08]} 16... Rfc8 {[%clk
0:01:50.4]} 17. Nd4 {[%clk 0:01:58.2]} 17... e5 {[%clk 0:01:45.9]} 18. Nxc6
{[%clk 0:01:55.3]} 18... Rxc6 {[%clk 0:01:45.1]} 19. Qb3 {[%clk 0:01:41.3]}
19... d4 {[%clk 0:01:32.9]} 20. c4 {[%clk 0:01:17.9]} 20... d3 {[%clk
0:01:18.8]} 21. O-O-O {[%clk 0:01:04.6]} 21... e4 {[%clk 0:01:12.1]} 22. f3
{[%clk 0:01:03.4]} 22... b5 {[%clk 0:00:46.7]} 23. fxe4 {[%clk 0:00:58.5]} 23...
bxc4 {[%clk 0:00:44.4]} 24. Qxc4 {[%clk 0:00:57.8]} 24... Qxd6 {[%clk 0:00:43]}
25. Rxd3 {[%clk 0:00:51.8]} 25... Qe5 {[%clk 0:00:40.4]} 26. Kd2 {[%clk
0:00:48.9]} 26... Rb8 {[%clk 0:00:36.1]} 27. a3 {[%clk 0:00:45.4]} 27... Qg3
{[%clk 0:00:23.4]} 28. Re1 {[%clk 0:00:43.4]} 28... Qxg2+ {[%clk 0:00:21.9]} 29.
Re2 {[%clk 0:00:43.1]} 29... Qh1 {[%clk 0:00:20.4]} 30. Qd5 {[%clk 0:00:41.2]}
30... Re6 {[%clk 0:00:19.9]} 31. e5 {[%clk 0:00:41.2]} 31... Qxd5 {[%clk
0:00:18.3]} 32. Rxd5 {[%clk 0:00:42.1]} 32... Rxe5 {[%clk 0:00:18.4]} 33. Rxe5
{[%clk 0:00:41.4]} 33... Bxe5 {[%clk 0:00:19.3]} 34. h5 {[%clk 0:00:41]} 34...
g6 {[%clk 0:00:19.1]} 35. hxg6 {[%clk 0:00:40.1]} 35... fxg6 {[%clk 0:00:19.1]}
36. Rg2 {[%clk 0:00:41]} 36... Kg7 {[%clk 0:00:19.3]} 37. Kd3 {[%clk 0:00:41.4]}
37... h5 {[%clk 0:00:19.7]} 38. Kc4 {[%clk 0:00:41.2]} 38... h4 {[%clk
0:00:18.5]} 39. a4 {[%clk 0:00:41.5]} 39... h3 {[%clk 0:00:19]} 40. Rg1 {[%clk
0:00:41.5]} 40... h2 {[%clk 0:00:19.5]} 41. Rh1 {[%clk 0:00:39.7]} 41... g5
{[%clk 0:00:19.9]} 42. b5 {[%clk 0:00:39.9]} 42... axb5+ {[%clk 0:00:19.6]} 43.
axb5 {[%clk 0:00:40.1]} 43... g4 {[%clk 0:00:20.2]} 44. Kd5 {[%clk 0:00:36.5]}
44... Kf6 {[%clk 0:00:20.4]} 45. Rf1+ {[%clk 0:00:35.3]} 45... Kg5 {[%clk
0:00:20.1]} 46. Kxe5 {[%clk 0:00:35.2]} 46... Rxb5 {[%clk 0:00:20]} 47. Kd6
{[%clk 0:00:34.5]} 47... g3 {[%clk 0:00:20.1]} 48. c6 {[%clk 0:00:22.6]} 48...
g2 {[%clk 0:00:20.1]} 49. Rc1 {[%clk 0:00:15.9]} 49... g1=Q {[%clk 0:00:18.9]}
50. Rc5+ {[%clk 0:00:14]} 50... Rxc5 {[%clk 0:00:18.8]} 51. Kxc5 {[%clk
0:00:14.9]} 51... Qxe3+ {[%clk 0:00:19]} 52. Kd6 {[%clk 0:00:15.2]} 52... h1=Q
{[%clk 0:00:19.4]} 53. c7 {[%clk 0:00:14.9]} 53... Qb6+ {[%clk 0:00:19.2]} 54.
Kd7 {[%clk 0:00:15.8]} 54... Qh7+ {[%clk 0:00:18.8]} 55. Ke8 {[%clk 0:00:15.3]}
55... Qbxc7 {[%clk 0:00:18.4]} 0-1

[Event "*** Titled Tuesday Blitz"]
[Site "Chess.com"]
[Date "2021.03.09"]
[Round "4"]
[White "PetrolulSah"]
[Black "TheCavemanChesss"]
[Result "0-1"]
[WhiteElo "2199"]
[BlackElo "2568"]
[TimeControl "180+1"]
[EndTime "10:42:23 PST"]
[Termination "TheCavemanChesss won on time"]

1. d4 {[%clk 0:03:00.9]} 1... Nf6 {[%clk 0:02:59.5]} 2. c4 {[%clk 0:02:59.6]}
2... e6 {[%clk 0:02:59.2]} 3. g3 {[%clk 0:02:58.6]} 3... d5 {[%clk 0:02:59.1]}
4. Bg2 {[%clk 0:02:58.5]} 4... Be7 {[%clk 0:02:59.7]} 5. Nf3 {[%clk 0:02:58.6]}
5... O-O {[%clk 0:03:00.1]} 6. O-O {[%clk 0:02:59.2]} 6... dxc4 {[%clk
0:03:00.3]} 7. Qc2 {[%clk 0:02:56.4]} 7... a6 {[%clk 0:03:00.8]} 8. a4 {[%clk
0:02:56.6]} 8... Bd7 {[%clk 0:02:59.8]} 9. Ne5 {[%clk 0:02:50.4]} 9... Nc6
{[%clk 0:02:57.7]} 10. Qxc4 {[%clk 0:02:44.4]} 10... Nxe5 {[%clk 0:02:41.5]} 11.
dxe5 {[%clk 0:02:45.3]} 11... Nd5 {[%clk 0:02:42]} 12. Bxd5 {[%clk 0:02:37.2]}
12... exd5 {[%clk 0:02:42]} 13. Qxd5 {[%clk 0:02:37.5]} 13... Qc8 {[%clk
0:02:34.1]} 14. Nc3 {[%clk 0:02:31.2]} 14... Bc6 {[%clk 0:02:33.5]} 15. Qd3
{[%clk 0:02:25.6]} 15... Qh3 {[%clk 0:02:32.2]} 16. Nd5 {[%clk 0:02:20.4]} 16...
Rad8 {[%clk 0:02:01.3]} 17. e4 {[%clk 0:02:15.9]} 17... Bc5 {[%clk 0:01:51.6]}
18. Bg5 {[%clk 0:01:54.8]} 18... Rd7 {[%clk 0:01:47.3]} 19. Qf3 {[%clk
0:01:48.3]} 19... Qe6 {[%clk 0:01:43.2]} 20. Rad1 {[%clk 0:01:39.6]} 20... Qxe5
{[%clk 0:01:39.6]} 21. Nf6+ {[%clk 0:01:03]} 21... gxf6 {[%clk 0:00:31.4]} 22.
Bxf6 {[%clk 0:01:00.5]} 22... Qe6 {[%clk 0:00:23.5]} 23. Qf4 {[%clk 0:00:56]}
23... Rc8 {[%clk 0:00:16.1]} 24. Qh6 {[%clk 0:00:43.5]} 24... Qg4 {[%clk
0:00:13.7]} 25. Rc1 {[%clk 0:00:20.6]} 25... Qg6 {[%clk 0:00:13.3]} 26. Qxg6+
{[%clk 0:00:19.8]} 26... fxg6 {[%clk 0:00:12.8]} 27. Rxc5 {[%clk 0:00:20.4]}
27... Bxe4 {[%clk 0:00:12.9]} 28. Re5 {[%clk 0:00:19.9]} 28... Bc6 {[%clk
0:00:12.3]} 29. h4 {[%clk 0:00:19.3]} 29... Bxa4 {[%clk 0:00:12.1]} 30. h5
{[%clk 0:00:18.7]} 30... Kf7 {[%clk 0:00:12.7]} 31. Bg5 {[%clk 0:00:18]} 31...
Bc6 {[%clk 0:00:12.9]} 32. Bf4 {[%clk 0:00:17.4]} 32... Re8 {[%clk 0:00:13.1]}
33. Rxe8 {[%clk 0:00:16.5]} 33... Kxe8 {[%clk 0:00:14]} 34. hxg6 {[%clk
0:00:16.2]} 34... hxg6 {[%clk 0:00:14.9]} 35. f3 {[%clk 0:00:14.9]} 35... Re7
{[%clk 0:00:13.8]} 36. Rf2 {[%clk 0:00:14.5]} 36... Kd7 {[%clk 0:00:14]} 37. Kg2
{[%clk 0:00:14.6]} 37... Kc8 {[%clk 0:00:14.5]} 38. Rd2 {[%clk 0:00:14.4]} 38...
Rd7 {[%clk 0:00:14.7]} 39. Re2 {[%clk 0:00:12.8]} 39... Rd3 {[%clk 0:00:14.2]}
40. Rf2 {[%clk 0:00:10.9]} 40... Rb3 {[%clk 0:00:14.8]} 41. g4 {[%clk
0:00:10.3]} 41... Bd5 {[%clk 0:00:15]} 42. Kg3 {[%clk 0:00:10.2]} 42... c5
{[%clk 0:00:15.3]} 43. g5 {[%clk 0:00:10.3]} 43... Kd7 {[%clk 0:00:15.9]} 44.
Kg4 {[%clk 0:00:10.6]} 44... Kc6 {[%clk 0:00:16.5]} 45. Be5 {[%clk 0:00:10]}
45... Be6+ {[%clk 0:00:16.3]} 46. Kg3 {[%clk 0:00:09.5]} 46... Bf5 {[%clk
0:00:16.6]} 47. Bc3 {[%clk 0:00:09.4]} 47... b5 {[%clk 0:00:16]} 48. Re2 {[%clk
0:00:09.5]} 48... b4 {[%clk 0:00:16.3]} 49. Bf6 {[%clk 0:00:09.6]} 49... Rd3
{[%clk 0:00:16.4]} 50. Re7 {[%clk 0:00:06.4]} 50... Kb5 {[%clk 0:00:15.8]} 51.
Rb7+ {[%clk 0:00:04.5]} 51... Kc6 {[%clk 0:00:16.2]} 52. Ra7 {[%clk 0:00:03.7]}
52... Kb6 {[%clk 0:00:16]} 53. Ra8 {[%clk 0:00:03.5]} 53... Be4 {[%clk
0:00:14.3]} 0-1

[Event "*** Titled Tuesday Blitz"]
[Site "Chess.com"]
[Date "2021.03.09"]
[Round "4"]
[White "Barbus89"]
[Black "AlejandroPacheco29"]
[Result "0-1"]
[WhiteElo "2268"]
[BlackElo "2507"]
[TimeControl "180+1"]
[EndTime "10:42:23 PST"]
[Termination "AlejandroPacheco29 won on time"]

1. Nf3 {[%clk 0:03:00.9]} 1... Nf6 {[%clk 0:02:59.8]} 2. g3 {[%clk 0:03:00.6]}
2... d5 {[%clk 0:03:00.1]} 3. Bg2 {[%clk 0:03:00.6]} 3... e6 {[%clk 0:03:01]} 4.
O-O {[%clk 0:03:00.6]} 4... Be7 {[%clk 0:03:01.9]} 5. d4 {[%clk 0:03:00.9]} 5...
O-O {[%clk 0:03:02.8]} 6. c4 {[%clk 0:03:01.3]} 6... dxc4 {[%clk 0:03:03.2]} 7.
Ne5 {[%clk 0:02:58]} 7... Nc6 {[%clk 0:03:02.9]} 8. Nxc6 {[%clk 0:02:58]} 8...
bxc6 {[%clk 0:03:03.8]} 9. Bxc6 {[%clk 0:02:57.9]} 9... Rb8 {[%clk 0:03:03.3]}
10. Nc3 {[%clk 0:02:56.5]} 10... Ba6 {[%clk 0:03:01.1]} 11. Bg2 {[%clk
0:02:46.6]} 11... c5 {[%clk 0:02:55.6]} 12. dxc5 {[%clk 0:02:39.9]} 12... Bxc5
{[%clk 0:02:53.8]} 13. Qc2 {[%clk 0:02:38.8]} 13... Qa5 {[%clk 0:02:48.4]} 14.
Bd2 {[%clk 0:02:36.3]} 14... Qc7 {[%clk 0:02:13.7]} 15. Bf4 {[%clk 0:02:23.2]}
15... e5 {[%clk 0:02:13.3]} 16. Bg5 {[%clk 0:02:23.5]} 16... Qd6 {[%clk
0:02:03.8]} 17. Bxf6 {[%clk 0:02:08.7]} 17... Qxf6 {[%clk 0:02:03.6]} 18. Nd5
{[%clk 0:02:07.5]} 18... Qe6 {[%clk 0:01:47.8]} 19. b3 {[%clk 0:01:47.6]} 19...
Rfc8 {[%clk 0:01:44.5]} 20. bxc4 {[%clk 0:01:30.2]} 20... Bxc4 {[%clk
0:01:42.5]} 21. Qe4 {[%clk 0:01:22.9]} 21... Bd4 {[%clk 0:01:34.4]} 22. Rac1
{[%clk 0:01:04.7]} 22... f5 {[%clk 0:01:26.8]} 23. Qxf5 {[%clk 0:00:45.6]} 23...
Bxd5 {[%clk 0:01:22.7]} 24. Rxc8+ {[%clk 0:00:44.2]} 24... Rxc8 {[%clk
0:01:18.8]} 25. Bxd5 {[%clk 0:00:43.4]} 25... Qxd5 {[%clk 0:01:13.8]} 26. Qxc8+
{[%clk 0:00:43.1]} 26... Kf7 {[%clk 0:01:14.7]} 27. Rc1 {[%clk 0:00:42.4]} 27...
Bb6 {[%clk 0:01:12.9]} 28. Qf5+ {[%clk 0:00:38.4]} 28... Ke7 {[%clk 0:01:10]}
29. Rc8 {[%clk 0:00:31]} 29... g6 {[%clk 0:00:44.2]} 30. Qf8+ {[%clk 0:00:29.2]}
30... Kd7 {[%clk 0:00:44.6]} 31. Qe8+ {[%clk 0:00:14.3]} 31... Kd6 {[%clk
0:00:44.9]} 32. Qf8+ {[%clk 0:00:09.3]} 32... Kd7 {[%clk 0:00:44.8]} 33. Re8
{[%clk 0:00:08.8]} 33... Qd1+ {[%clk 0:00:38.6]} 34. Kg2 {[%clk 0:00:08.4]}
34... Qd5+ {[%clk 0:00:38.7]} 35. f3 {[%clk 0:00:06.6]} 35... Qd4 {[%clk
0:00:36.2]} 36. Qe7+ {[%clk 0:00:05.5]} 36... Kc6 {[%clk 0:00:36.6]} 37. Qe6+
{[%clk 0:00:05.6]} 37... Kb5 {[%clk 0:00:33.5]} 38. Qb3+ {[%clk 0:00:05]} 38...
Ka6 {[%clk 0:00:32.4]} 39. Qa3+ {[%clk 0:00:04.3]} 39... Kb5 {[%clk 0:00:30.1]}
40. e3 {[%clk 0:00:02.8]} 40... Qd2+ {[%clk 0:00:24.2]} 41. Kh3 {[%clk
0:00:03.1]} 41... Qd7+ {[%clk 0:00:21.2]} 42. g4 {[%clk 0:00:01.8]} 42... Qxe8
{[%clk 0:00:21.2]} 43. Qb3+ {[%clk 0:00:01.8]} 43... Ka6 {[%clk 0:00:20.7]} 44.
Qa3+ {[%clk 0:00:02.7]} 44... Kb7 {[%clk 0:00:20.8]} 45. Qb3 {[%clk 0:00:03.6]}
45... Qc6 {[%clk 0:00:20.5]} 46. Qf7+ {[%clk 0:00:03.1]} 46... Ka6 {[%clk
0:00:19.8]} 47. Kg2 {[%clk 0:00:03.5]} 47... e4 {[%clk 0:00:17.2]} 48. Qxh7
{[%clk 0:00:01.4]} 48... exf3+ {[%clk 0:00:17]} 49. Kf2 {[%clk 0:00:02.3]} 49...
Qe4 {[%clk 0:00:14.4]} 50. Qf7 {[%clk 0:00:01.4]} 50... Bxe3+ {[%clk 0:00:14.4]}
51. Kg3 {[%clk 0:00:01.3]} 51... f2 {[%clk 0:00:12.9]} 0-1

[Event "*** Titled Tuesday Blitz"]
[Site "Chess.com"]
[Date "2021.03.09"]
[Round "4"]
[White "lagedema"]
[Black "Jospem"]
[Result "0-1"]
[WhiteElo "2487"]
[BlackElo "2932"]
[TimeControl "180+1"]
[EndTime "10:42:25 PST"]
[Termination "Jospem won on time"]

1. d4 {[%clk 0:02:57.6]} 1... Nf6 {[%clk 0:03:00]} 2. Bf4 {[%clk 0:02:53.8]}
2... e6 {[%clk 0:02:58.8]} 3. e3 {[%clk 0:02:54.1]} 3... b6 {[%clk 0:02:59]} 4.
Nf3 {[%clk 0:02:52.2]} 4... Bb7 {[%clk 0:02:59.2]} 5. h3 {[%clk 0:02:52.4]} 5...
c5 {[%clk 0:02:58.9]} 6. c3 {[%clk 0:02:50.7]} 6... Be7 {[%clk 0:02:58.2]} 7.
Be2 {[%clk 0:02:48.7]} 7... O-O {[%clk 0:02:57.8]} 8. O-O {[%clk 0:02:49.2]}
8... cxd4 {[%clk 0:02:56.3]} 9. exd4 {[%clk 0:02:48.6]} 9... d6 {[%clk
0:02:56.2]} 10. Bh2 {[%clk 0:02:47.3]} 10... Nbd7 {[%clk 0:02:55.3]} 11. Re1
{[%clk 0:02:46]} 11... Re8 {[%clk 0:02:53.5]} 12. a4 {[%clk 0:02:43.5]} 12... a6
{[%clk 0:02:53]} 13. Nbd2 {[%clk 0:02:42.6]} 13... Bf8 {[%clk 0:02:51.1]} 14.
Bc4 {[%clk 0:02:37.2]} 14... Qc7 {[%clk 0:02:46.7]} 15. Qb3 {[%clk 0:02:33.2]}
15... Bd5 {[%clk 0:02:30.5]} 16. Bxd5 {[%clk 0:02:29.7]} 16... Nxd5 {[%clk
0:02:31.4]} 17. c4 {[%clk 0:02:26.8]} 17... N5f6 {[%clk 0:02:30.3]} 18. Rac1
{[%clk 0:02:24.1]} 18... Qc6 {[%clk 0:02:20]} 19. Qa2 {[%clk 0:02:11.3]} 19...
d5 {[%clk 0:01:58.7]} 20. Ne5 {[%clk 0:02:05.9]} 20... Qb7 {[%clk 0:01:57.5]}
21. Ndf3 {[%clk 0:01:55.2]} 21... dxc4 {[%clk 0:01:28.4]} 22. Qxc4 {[%clk
0:01:47.9]} 22... Rac8 {[%clk 0:01:26.3]} 23. Qe2 {[%clk 0:01:43.7]} 23... b5
{[%clk 0:01:18]} 24. axb5 {[%clk 0:01:41.3]} 24... axb5 {[%clk 0:01:18.9]} 25.
Rxc8 {[%clk 0:01:31.8]} 25... Rxc8 {[%clk 0:01:17.7]} 26. Nxf7 {[%clk
0:01:27.3]} 26... Re8 {[%clk 0:01:12.1]} 27. N7e5 {[%clk 0:01:14]} 27... Qd5
{[%clk 0:01:12.2]} 28. Bg3 {[%clk 0:01:13.3]} 28... Nb6 {[%clk 0:01:10.9]} 29.
Bh4 {[%clk 0:01:09.5]} 29... Na4 {[%clk 0:01:06.9]} 30. Bxf6 {[%clk 0:01:04.9]}
30... gxf6 {[%clk 0:01:07.8]} 31. Ng4 {[%clk 0:01:05.1]} 31... Bg7 {[%clk
0:01:04.7]} 32. Ne3 {[%clk 0:01:04.6]} 32... Qb3 {[%clk 0:01:04.2]} 33. Nf5
{[%clk 0:00:38.8]} 33... Bf8 {[%clk 0:00:59.5]} 34. Qe4 {[%clk 0:00:37.3]} 34...
Qc4 {[%clk 0:00:28.1]} 35. b3 {[%clk 0:00:32.4]} 35... Qxb3 {[%clk 0:00:27.7]}
36. d5 {[%clk 0:00:32.8]} 36... Nc5 {[%clk 0:00:17.8]} 37. Qg4+ {[%clk
0:00:33.1]} 37... Kh8 {[%clk 0:00:18.5]} 38. Qh4 {[%clk 0:00:33.4]} 38... Bg7
{[%clk 0:00:14.3]} 39. Nxg7 {[%clk 0:00:30.3]} 39... Kxg7 {[%clk 0:00:15.2]} 40.
Qg4+ {[%clk 0:00:29.3]} 40... Kh8 {[%clk 0:00:04.9]} 41. Qf4 {[%clk 0:00:28.3]}
41... Nd7 {[%clk 0:00:02.3]} 42. Qd6 {[%clk 0:00:19.1]} 42... Nf8 {[%clk
0:00:01.2]} 43. Qf4 {[%clk 0:00:11.4]} 43... Nd7 {[%clk 0:00:01]} 44. dxe6
{[%clk 0:00:07.2]} 44... Rxe6 {[%clk 0:00:01.9]} 45. Rc1 {[%clk 0:00:06.9]}
45... Qd5 {[%clk 0:00:02]} 46. Rc8+ {[%clk 0:00:06.3]} 46... Kg7 {[%clk
0:00:02.6]} 47. Qg4+ {[%clk 0:00:06.2]} 47... Kf7 {[%clk 0:00:03.3]} 48. Qg8+
{[%clk 0:00:06.2]} 48... Ke7 {[%clk 0:00:04]} 0-1

[Event "*** Titled Tuesday Blitz"]
[Site "Chess.com"]
[Date "2021.03.09"]
[Round "4"]
[White "SHIVACalypso"]
[Black "Ekose"]
[Result "1-0"]
[WhiteElo "2374"]
[BlackElo "2525"]
[TimeControl "180+1"]
[EndTime "10:42:25 PST"]
[Termination "SHIVACalypso won on time"]

1. Nf3 {[%clk 0:03:00.9]} 1... Nf6 {[%clk 0:02:57.5]} 2. c4 {[%clk 0:03:00.8]}
2... e6 {[%clk 0:02:56.4]} 3. g3 {[%clk 0:03:00.5]} 3... b6 {[%clk 0:02:56.1]}
4. Bg2 {[%clk 0:03:00.6]} 4... Bb7 {[%clk 0:02:56.4]} 5. O-O {[%clk 0:03:00.8]}
5... Be7 {[%clk 0:02:56.4]} 6. Nc3 {[%clk 0:03:01.4]} 6... O-O {[%clk
0:02:55.5]} 7. d4 {[%clk 0:03:01.6]} 7... Ne4 {[%clk 0:02:54.2]} 8. Nxe4 {[%clk
0:02:59.7]} 8... Bxe4 {[%clk 0:02:53.8]} 9. Be3 {[%clk 0:02:58.3]} 9... d6
{[%clk 0:02:53.1]} 10. Qd2 {[%clk 0:02:58.5]} 10... Nd7 {[%clk 0:02:52.6]} 11.
Rfd1 {[%clk 0:02:53.3]} 11... c6 {[%clk 0:02:50.7]} 12. Rac1 {[%clk 0:02:52.2]}
12... Rc8 {[%clk 0:02:50.4]} 13. Ne1 {[%clk 0:02:47.9]} 13... Bxg2 {[%clk
0:02:49.9]} 14. Nxg2 {[%clk 0:02:48.8]} 14... d5 {[%clk 0:02:48.3]} 15. Nf4
{[%clk 0:02:43.4]} 15... Nf6 {[%clk 0:02:47.2]} 16. cxd5 {[%clk 0:02:38.5]}
16... exd5 {[%clk 0:02:31.7]} 17. Nd3 {[%clk 0:02:34.7]} 17... Ne4 {[%clk
0:02:29.3]} 18. Qc2 {[%clk 0:02:33.3]} 18... Bd6 {[%clk 0:02:28.1]} 19. Bf4
{[%clk 0:02:30.7]} 19... Re8 {[%clk 0:02:21]} 20. Bxd6 {[%clk 0:02:29.7]} 20...
Qxd6 {[%clk 0:02:21.9]} 21. Qa4 {[%clk 0:02:24.7]} 21... Rc7 {[%clk 0:02:12]}
22. Rc2 {[%clk 0:02:22.6]} 22... Rec8 {[%clk 0:02:11.9]} 23. Rdc1 {[%clk
0:02:22.4]} 23... h6 {[%clk 0:02:08.6]} 24. f3 {[%clk 0:02:07.5]} 24... Nxg3
{[%clk 0:01:40.6]} 25. hxg3 {[%clk 0:02:05.2]} 25... Qxg3+ {[%clk 0:01:40.6]}
26. Kf1 {[%clk 0:02:05.8]} 26... Qh3+ {[%clk 0:01:20.1]} 27. Ke1 {[%clk
0:02:02]} 27... Qh4+ {[%clk 0:01:20.3]} 28. Kd1 {[%clk 0:01:55.1]} 28... c5
{[%clk 0:01:20.1]} 29. b3 {[%clk 0:01:44.6]} 29... c4 {[%clk 0:01:15.6]} 30.
bxc4 {[%clk 0:01:39]} 30... Qxd4 {[%clk 0:01:15.3]} 31. Ke1 {[%clk 0:01:17.3]}
31... dxc4 {[%clk 0:01:10.2]} 32. Nf2 {[%clk 0:01:13.6]} 32... h5 {[%clk
0:00:59.2]} 33. Rd1 {[%clk 0:01:07.2]} 33... Qf4 {[%clk 0:00:53.1]} 34. Rd7
{[%clk 0:01:00.7]} 34... Qg3 {[%clk 0:00:45.9]} 35. Kf1 {[%clk 0:00:55.9]} 35...
h4 {[%clk 0:00:33]} 36. Rxc7 {[%clk 0:00:51.5]} 36... Qxc7 {[%clk 0:00:29.7]}
37. Qb5 {[%clk 0:00:45.4]} 37... c3 {[%clk 0:00:26]} 38. Qh5 {[%clk 0:00:36.7]}
38... Qf4 {[%clk 0:00:19.4]} 39. Qg4 {[%clk 0:00:35]} 39... Qc7 {[%clk
0:00:14.5]} 40. Qxh4 {[%clk 0:00:34.1]} 40... Qc6 {[%clk 0:00:11.9]} 41. Qd4
{[%clk 0:00:28.7]} 41... b5 {[%clk 0:00:09.9]} 42. Ne4 {[%clk 0:00:23.8]} 42...
Qh6 {[%clk 0:00:09.8]} 43. Rxc3 {[%clk 0:00:19.5]} 43... Rxc3 {[%clk 0:00:07.3]}
44. Qxc3 {[%clk 0:00:19.1]} 44... Qh1+ {[%clk 0:00:06.6]} 45. Kf2 {[%clk
0:00:19.5]} 45... Qh2+ {[%clk 0:00:06.7]} 46. Ke3 {[%clk 0:00:19.3]} 46... a6
{[%clk 0:00:03.6]} 47. Qc8+ {[%clk 0:00:18.5]} 47... Kh7 {[%clk 0:00:03.7]} 48.
Qxa6 {[%clk 0:00:18.9]} 48... Qg1+ {[%clk 0:00:03.3]} 49. Kd2 {[%clk 0:00:17.8]}
49... Qd4+ {[%clk 0:00:03.3]} 50. Kc2 {[%clk 0:00:16]} 50... Qc4+ {[%clk
0:00:01.6]} 51. Nc3 {[%clk 0:00:15.7]} 51... g6 {[%clk 0:00:01.2]} 52. Qxb5
{[%clk 0:00:15.6]} 1-0

[Event "*** Titled Tuesday Blitz"]
[Site "Chess.com"]
[Date "2021.03.09"]
[Round "4"]
[White "IsuruAlahakoon"]
[Black "lider34"]
[Result "0-1"]
[WhiteElo "2280"]
[BlackElo "2473"]
[TimeControl "180+1"]
[EndTime "10:42:25 PST"]
[Termination "lider34 won on time"]

1. Nf3 {[%clk 0:03:00.9]} 1... g6 {[%clk 0:02:59.1]} 2. d4 {[%clk 0:02:57.7]}
2... Bg7 {[%clk 0:02:59.5]} 3. Bf4 {[%clk 0:02:58.2]} 3... d6 {[%clk 0:02:59.4]}
4. Nc3 {[%clk 0:02:55.3]} 4... Nf6 {[%clk 0:02:59.4]} 5. e4 {[%clk 0:02:55.5]}
5... O-O {[%clk 0:02:59.4]} 6. Qd2 {[%clk 0:02:49.5]} 6... c6 {[%clk 0:02:59]}
7. O-O-O {[%clk 0:02:40.6]} 7... Qa5 {[%clk 0:02:57.5]} 8. Kb1 {[%clk
0:02:39.7]} 8... b5 {[%clk 0:02:50.9]} 9. Nd5 {[%clk 0:02:23]} 9... Qd8 {[%clk
0:02:44.7]} 10. Nxf6+ {[%clk 0:02:21.8]} 10... exf6 {[%clk 0:02:38.4]} 11. h4
{[%clk 0:02:21.8]} 11... h5 {[%clk 0:02:36.1]} 12. Qb4 {[%clk 0:02:17]} 12...
Re8 {[%clk 0:02:16.7]} 13. Bd3 {[%clk 0:02:11.6]} 13... d5 {[%clk 0:02:03.6]}
14. exd5 {[%clk 0:02:06]} 14... Qxd5 {[%clk 0:02:01.2]} 15. Rhe1 {[%clk
0:02:00.1]} 15... Be6 {[%clk 0:02:00.8]} 16. b3 {[%clk 0:01:49.5]} 16... Bf8
{[%clk 0:01:58.7]} 17. Qd2 {[%clk 0:01:48]} 17... Na6 {[%clk 0:01:50]} 18. Bh6
{[%clk 0:01:26.8]} 18... Bg7 {[%clk 0:01:29]} 19. Bxg7 {[%clk 0:01:20.6]} 19...
Kxg7 {[%clk 0:01:29.9]} 20. Be4 {[%clk 0:01:07.9]} 20... Qd6 {[%clk 0:01:26.6]}
21. Qc3 {[%clk 0:01:04.7]} 21... Nb4 {[%clk 0:01:21.1]} 22. Ng5 {[%clk
0:00:43.1]} 22... Nd5 {[%clk 0:01:13.6]} 23. Nxe6+ {[%clk 0:00:42.4]} 23... Rxe6
{[%clk 0:01:05.8]} 24. Bxd5 {[%clk 0:00:36.9]} 24... Qxd5 {[%clk 0:01:06.1]} 25.
Rxe6 {[%clk 0:00:34.3]} 25... fxe6 {[%clk 0:00:50.9]} 26. f3 {[%clk 0:00:32.2]}
26... Rd8 {[%clk 0:00:42.9]} 27. g4 {[%clk 0:00:21.3]} 27... hxg4 {[%clk
0:00:38]} 28. fxg4 {[%clk 0:00:22.2]} 28... c5 {[%clk 0:00:29.8]} 29. h5 {[%clk
0:00:21.9]} 29... cxd4 {[%clk 0:00:28.7]} 30. Qd3 {[%clk 0:00:19.3]} 30... Qg5
{[%clk 0:00:20.1]} 31. hxg6 {[%clk 0:00:15.5]} 31... a6 {[%clk 0:00:18.6]} 32.
Qe4 {[%clk 0:00:11]} 32... Qxg6 {[%clk 0:00:14.2]} 33. Qxe6 {[%clk 0:00:11.1]}
33... Qf7 {[%clk 0:00:12.7]} 34. Qxa6 {[%clk 0:00:09.2]} 34... b4 {[%clk
0:00:10.9]} 35. Qb6 {[%clk 0:00:07.8]} 35... Qd7 {[%clk 0:00:08.8]} 36. Qxb4
{[%clk 0:00:07.1]} 36... Kg8 {[%clk 0:00:07.8]} 37. Qc4+ {[%clk 0:00:06.2]}
37... Kg7 {[%clk 0:00:07.3]} 38. a4 {[%clk 0:00:06.3]} 38... Qd6 {[%clk
0:00:07]} 39. Re1 {[%clk 0:00:04.6]} 39... Qg3 {[%clk 0:00:05.8]} 40. Re7+
{[%clk 0:00:02.9]} 40... Kh6 {[%clk 0:00:05.3]} 41. Qf7 {[%clk 0:00:03.2]} 41...
Qg1+ {[%clk 0:00:04.5]} 42. Ka2 {[%clk 0:00:03.2]} 42... d3 {[%clk 0:00:03.6]}
43. Qh7+ {[%clk 0:00:01.9]} 43... Kg5 {[%clk 0:00:03]} 44. Rg7+ {[%clk
0:00:02.7]} 44... Kf4 {[%clk 0:00:02.9]} 45. Qf5+ {[%clk 0:00:03.6]} 45... Kg3
{[%clk 0:00:02.8]} 0-1